Amount (�),Supplier,Service ,Division,Cost Centre,Cost Centre Code,Expenditure Category,Date Paid,Type,Transaction Reference,Dept,Department
7746775.7,Nottinghamshire County Council,Collection Fund,Precepting Authorities,Notts Cc Precept & Ndr Share,5930,Precept Paid,04/08/20,Collection Fund Accounts,108337,Collection Fund,Finance & Corporate Services
7746775.7,Nottinghamshire County Council,Collection Fund,Precepting Authorities,Notts Cc Precept & Ndr Share,5930,Precept Paid,09/09/20,Collection Fund Accounts,108338,Collection Fund,Finance & Corporate Services
998396,Notts Police & Crime Commissioner,Collection Fund,Precepting Authorities,Notts Police Precept & Ndr,5932,Precept Paid,04/08/20,Collection Fund Accounts,107469,Collection Fund,Finance & Corporate Services
998396,Notts Police & Crime Commissioner,Collection Fund,Precepting Authorities,Notts Police Precept & Ndr,5932,Precept Paid,09/09/20,Collection Fund Accounts,107471,Collection Fund,Finance & Corporate Services
381693.5,Notts Fire And Rescue Service,Collection Fund,Precepting Authorities,Notts Fire Precept & Ndr,5933,Precept Paid,04/08/20,Collection Fund Accounts,108346,Collection Fund,Finance & Corporate Services
381693.5,Notts Fire And Rescue Service,Collection Fund,Precepting Authorities,Notts Fire Precept & Ndr,5933,Precept Paid,09/09/20,Collection Fund Accounts,108347,Collection Fund,Finance & Corporate Services
235000,Nottingham County Council,Liabilities,Long Term Liabilities,Central College Greythorn Dv,6760,Balance Sheet Exp In The Year,06/08/20,Balance Sheet Exp In The Year,112092,Liabilities,Finance & Corporate Services
156192,East Leake Parish Council,General Fund Summary,Cies,Parish Council Precepts,1990,Parish Precepts,23/09/20,Transfers Expenditure,107396,General Fund Summary,Finance & Corporate Services
155235,Ruddington Parish Council,General Fund Summary,Cies,Parish Council Precepts,1990,Parish Precepts,23/09/20,Transfers Expenditure,107438,General Fund Summary,Finance & Corporate Services
153264.5,Radcliffe On Trent Parish Council,General Fund Summary,Cies,Parish Council Precepts,1990,Parish Precepts,23/09/20,Transfers Expenditure,107434,General Fund Summary,Finance & Corporate Services
150132.5,Bingham Town Council (Precept),General Fund Summary,Cies,Parish Council Precepts,1990,Parish Precepts,23/09/20,Transfers Expenditure,107377,General Fund Summary,Finance & Corporate Services
142574.69,Streetwise Environmental Ltd           1,Neighbourhoods,Waste & Fleet Management,Streetwise Contract,8301,Contractors-Third Party,31/07/20,Third Party Payments,111623,Neighbourhoods,Neighbourhoods
142574.69,Streetwise Environmental Ltd           1,Neighbourhoods,Waste & Fleet Management,Streetwise Contract,8301,Contractors-Third Party,25/08/20,Third Party Payments,112357,Neighbourhoods,Neighbourhoods
142574.69,Streetwise Environmental Ltd           1,Neighbourhoods,Waste & Fleet Management,Streetwise Contract,8301,Contractors-Third Party,28/09/20,Third Party Payments,113101,Neighbourhoods,Neighbourhoods
134440,Centerprise International,Capital Expenditure,Finance & Corporate,Technical Infrastructure,603,Computer Hardware,26/08/20,Supplies & Services,112353,Capital Expenditure,Capital
125016,Henry Riley Llp,Capital Expenditure,Transformation & Innovation,Bingham Leisure Hub,314,Legal & Professional Services,20/07/20,Supplies & Services,111415,Capital Expenditure,Transformation
115594.79,As Enterprises Limited,Capital Expenditure,Transformation & Innovation,Cotgrave Phase 2,387,Legal & Professional Services,15/09/20,Supplies & Services,112696,Capital Expenditure,Capital
104197,Cotgrave Town Council,General Fund Summary,Cies,Parish Council Precepts,1990,Parish Precepts,23/09/20,Transfers Expenditure,108307,General Fund Summary,Finance & Corporate Services
90175,Keyworth Parish Council,General Fund Summary,Cies,Parish Council Precepts,1990,Parish Precepts,23/09/20,Transfers Expenditure,107423,General Fund Summary,Finance & Corporate Services
82558,Parkwood Community Leisure,Neighbourhoods,Leisure Contracts & Car Parks,Leisure Management Contract,1795,Parkwood Contract,11/09/20,Third Party Payments,112844,Neighbourhoods,Finance & Corporate Services
75912.4,South Kesteven District Council (Bc),Communities,Building Control,Building Control - Fee Earning,1151,Other Local Authorities,14/07/20,Third Party Payments,111392,Communities,Communities
74195,Nottingham City Council,Neighbourhoods,Waste & Fleet Management,Eastcroft Depot,4002,Olas - Nottm City Council,29/07/20,Third Party Payments,110785,Neighbourhoods,Neighbourhoods
72987.57,As Enterprises Limited,Capital Expenditure,Transformation & Innovation,Cotgrave Phase 2,387,Legal & Professional Services,28/09/20,Supplies & Services,113565,Capital Expenditure,Capital
63783,Parkwood Community Leisure,Neighbourhoods,Leisure Contracts & Car Parks,Leisure Management Contract,1795,Parkwood Contract,25/08/20,Third Party Payments,112373,Neighbourhoods,Finance & Corporate Services
57343.95,Bytes Software Services Ltd,Finance & Corporate Services,Ict,It Rechargeable Costs,4722,Maintenance Contracts - S&S,20/07/20,Supplies & Services,111394,Finance & Corporate Services,Transformation
57114.75,Severn Trent Water,Capital Expenditure,Transformation & Innovation,Cotgrave Phase 2,387,Legal & Professional Services,14/07/20,Supplies & Services,111185,Capital Expenditure,Capital
50448.8,Total Reclaims Demolition Ltd,Capital Expenditure,Transformation & Innovation,Abbey Road Redevelopment,312,Contractors-Third Party,19/08/20,Third Party Payments,112107,Capital Expenditure,Capital
47875.5,Cropwell Bishop Parish Council,General Fund Summary,Cies,Parish Council Precepts,1990,Parish Precepts,23/09/20,Transfers Expenditure,107481,General Fund Summary,Finance & Corporate Services
44444.3,Nottinghamshire County Council,Neighbourhoods,Leisure Contracts & Car Parks,East Leake Leisure Centre,1700,Olas - Notts County Council,31/07/20,Third Party Payments,106493,Neighbourhoods,Finance & Corporate Services
44097.14,Nottinghamshire County Council,Neighbourhoods,Leisure Contracts & Car Parks,East Leake Leisure Centre,1700,Olas - Notts County Council,31/07/20,Third Party Payments,106464,Neighbourhoods,Finance & Corporate Services
44097.14,Nottinghamshire County Council,Neighbourhoods,Leisure Contracts & Car Parks,East Leake Leisure Centre,1700,Olas - Notts County Council,31/07/20,Third Party Payments,106465,Neighbourhoods,Finance & Corporate Services
42398.67,Nottinghamshire County Council,Neighbourhoods,Leisure Contracts & Car Parks,East Leake Leisure Centre,1700,Olas - Notts County Council,25/08/20,Third Party Payments,106469,Neighbourhoods,Finance & Corporate Services
32356,Total Reclaims Demolition Ltd,Capital Expenditure,Transformation & Innovation,Abbey Road Redevelopment,312,Contractors-Third Party,14/07/20,Third Party Payments,110566,Capital Expenditure,Capital
31375,Tollerton Parish Council,General Fund Summary,Cies,Parish Council Precepts,1990,Parish Precepts,23/09/20,Transfers Expenditure,107455,General Fund Summary,Finance & Corporate Services
29193.81,Nottinghamshire County Council,Neighbourhoods,Leisure Contracts & Car Parks,East Leake Leisure Centre,1700,Olas - Notts County Council,23/09/20,Third Party Payments,113423,Neighbourhoods,Finance & Corporate Services
29193.81,Nottinghamshire County Council,Neighbourhoods,Leisure Contracts & Car Parks,East Leake Leisure Centre,1700,Olas - Notts County Council,23/09/20,Third Party Payments,113424,Neighbourhoods,Finance & Corporate Services
29193.81,Nottinghamshire County Council,Neighbourhoods,Leisure Contracts & Car Parks,East Leake Leisure Centre,1700,Olas - Notts County Council,23/09/20,Third Party Payments,113426,Neighbourhoods,Finance & Corporate Services
29103.03,Nottingham City Council,Neighbourhoods,Waste & Fleet Management,Fleet,8600,Contractors-Transport,23/09/20,Transport Related Expenditure,113462,Neighbourhoods,Neighbourhoods
28477.33,Nottingham City Council,Neighbourhoods,Waste & Fleet Management,Fleet,8600,Diesel,15/09/20,Transport Related Expenditure,113131,Neighbourhoods,Neighbourhoods
27704.81,Nottingham City Council,Neighbourhoods,Waste & Fleet Management,Fleet,8600,Contractors-Transport,02/09/20,Transport Related Expenditure,112747,Neighbourhoods,Neighbourhoods
26908.3,Nottingham City Council,Neighbourhoods,Waste & Fleet Management,Fleet,8600,Contractors-Transport,06/08/20,Transport Related Expenditure,112064,Neighbourhoods,Neighbourhoods
26651.69,Nottingham City Council,Neighbourhoods,Waste & Fleet Management,Fleet,8600,Diesel,20/07/20,Transport Related Expenditure,111616,Neighbourhoods,Neighbourhoods
25930.13,Nottingham City Council,Neighbourhoods,Waste & Fleet Management,Fleet,8600,Diesel,15/09/20,Transport Related Expenditure,113130,Neighbourhoods,Neighbourhoods
22173.87,Streetwise Environmental Ltd           1,Neighbourhoods,Waste & Fleet Management,Streetwise Contract,8301,Contractors-Third Party,28/09/20,Third Party Payments,113134,Neighbourhoods,Neighbourhoods
20710.12,Nottingham City Council,Neighbourhoods,Waste & Fleet Management,Fleet,8600,Contractors-Transport,06/08/20,Transport Related Expenditure,112063,Neighbourhoods,Neighbourhoods
20575,East Bridgford Parish Council,General Fund Summary,Cies,Parish Council Precepts,1990,Parish Precepts,23/09/20,Transfers Expenditure,107394,General Fund Summary,Finance & Corporate Services
19500,Centerprise International,Capital Expenditure,Finance & Corporate,Technical Infrastructure,603,Computer Hardware,15/09/20,Supplies & Services,112756,Capital Expenditure,Capital
19397,Langar Cum Barnstone Parish Council,General Fund Summary,Cies,Parish Council Precepts,1990,Parish Precepts,23/09/20,Transfers Expenditure,107427,General Fund Summary,Finance & Corporate Services
19073,Gotham Parish Council,General Fund Summary,Cies,Parish Council Precepts,1990,Parish Precepts,23/09/20,Transfers Expenditure,107407,General Fund Summary,Finance & Corporate Services
18625,Holme Pierrepont & Gamston Parish Council,General Fund Summary,Cies,Parish Council Precepts,1990,Parish Precepts,23/09/20,Transfers Expenditure,107420,General Fund Summary,Finance & Corporate Services
18525,Idox Software Limited,Capital Expenditure,Finance & Corporate,Applications/Apps,605,Software,17/09/20,Supplies & Services,110288,Capital Expenditure,Capital
18425,Total Reclaims Demolition Ltd,Capital Expenditure,Transformation & Innovation,Abbey Road Redevelopment,312,Contractors-Third Party,14/07/20,Third Party Payments,111239,Capital Expenditure,Capital
18241.08,Whatton-Aslockton Playing Field Trust,Liabilities,Long Term Liabilities,Abbey Ln Aslocktn 14/00480/Out,6761,Balance Sheet Exp In The Year,17/09/20,Balance Sheet Exp In The Year,113098,Liabilities,Finance & Corporate Services
15732.99,Civica Uk Ltd,Neighbourhoods,Strategic Housing,Choice Based Lettings,1107,Partnership Workings,02/09/20,Supplies & Services,112421,Neighbourhoods,Neighbourhoods
15586.92,Nottinghamshire County Council,Neighbourhoods,Leisure Contracts & Car Parks,East Leake Leisure Centre,1700,Olas - Notts County Council,23/09/20,Third Party Payments,113425,Neighbourhoods,Finance & Corporate Services
15586.92,Nottinghamshire County Council,Neighbourhoods,Leisure Contracts & Car Parks,East Leake Leisure Centre,1700,Olas - Notts County Council,23/09/20,Third Party Payments,113427,Neighbourhoods,Finance & Corporate Services
15586.92,Nottinghamshire County Council,Neighbourhoods,Leisure Contracts & Car Parks,East Leake Leisure Centre,1700,Olas - Notts County Council,23/09/20,Third Party Payments,113428,Neighbourhoods,Finance & Corporate Services
15208.64,Print Image Facilities Llp,Finance & Corporate Services,Democratic Services,Electoral Registration,1026,Postages,24/07/20,Supplies & Services,111733,Finance & Corporate Services,Finance & Corporate Services
15190,Storm Environmental Ltd,Capital Expenditure,Neighbourhoods,Wheeled Bins,310,Other Equipment/Materials,11/08/20,Supplies & Services,111836,Capital Expenditure,Capital
15000,Total Reclaims Demolition Ltd,Capital Expenditure,Transformation & Innovation,Abbey Road Redevelopment,312,Contractors-Third Party,17/09/20,Third Party Payments,112679,Capital Expenditure,Capital
14768.45,Poly Advisory Limited,Capital Expenditure,Neighbourhoods,Clc - Pool Liner,416,Contractors-Third Party,25/08/20,Third Party Payments,112280,Capital Expenditure,Neighbourhoods
14700,Total Reclaims Demolition Ltd,Capital Expenditure,Transformation & Innovation,Abbey Road Redevelopment,312,Contractors-Third Party,19/08/20,Third Party Payments,112085,Capital Expenditure,Capital
14339,Streetwise Environmental Ltd           1,Communities,Community Development,Parks & Playing Fields-Gen,8910,Programme Budget,25/08/20,Premises Related Expenditure,111619,Communities,Communities
14250,Sutton Bonington Parish Council,General Fund Summary,Cies,Parish Council Precepts,1990,Parish Precepts,23/09/20,Transfers Expenditure,107452,General Fund Summary,Finance & Corporate Services
13447.2,One51 Es Plastics (Uk) Ltd T/A Mgb Plastics,Capital Expenditure,Neighbourhoods,Wheeled Bins,310,Other Equipment/Materials,13/08/20,Supplies & Services,112283,Capital Expenditure,Capital
13447.2,One51 Es Plastics (Uk) Ltd T/A Mgb Plastics,Neighbourhoods,Waste & Fleet Management,Waste Collection,8403,Other Equipment/Materials,21/09/20,Supplies & Services,113048,Neighbourhoods,Neighbourhoods
13312.5,Bdo International Ltd,Finance & Corporate Services,Financial Services,Financial Services,4705,Professional Subscriptions,20/07/20,Employee Related Expenditure,111238,Finance & Corporate Services,Finance & Corporate Services
12953,British Telecommunications Ltd,Capital Expenditure,Transformation & Innovation,Cotgrave Phase 2,387,Legal & Professional Services,27/07/20,Supplies & Services,111500,Capital Expenditure,Capital
12920.38,Centrica Business Solutions Uk Limited,Transformation,Property Services,Arena Civic Centre,4718,Service Maintenance Contracts,15/09/20,Premises Related Expenditure,112825,Transformation,Transformation
12852,Magpie Security Limited,Communities,Community Development,Facilities Team,4714,Cleaning Equipment/Materials,19/08/20,Supplies & Services,111979,Communities,Communities
12500,Civica Uk Ltd,Capital Expenditure,Finance & Corporate,Applications/Apps,605,Software,02/09/20,Supplies & Services,112422,Capital Expenditure,Capital
11722.25,Henry Riley Llp,Capital Expenditure,Transformation & Innovation,Bingham Leisure Hub,314,Legal & Professional Services,25/08/20,Supplies & Services,112429,Capital Expenditure,Transformation
11121.57,Henry Riley Llp,Capital Expenditure,Transformation & Innovation,Bingham Leisure Hub,314,Legal & Professional Services,15/09/20,Supplies & Services,112848,Capital Expenditure,Transformation
10922.4,Streetwise Environmental Ltd           1,Communities,Community Development,Parks & Playing Fields-Gen,8910,Responsive Works - Buildings,25/08/20,Premises Related Expenditure,112512,Communities,Communities
10900,Tunstall Response Ltd,Neighbourhoods,Strategic Housing,Home Alarms,1137,Other Equipment/Materials,08/07/20,Supplies & Services,110905,Neighbourhoods,Neighbourhoods
10000,Ashfield District Council,Neighbourhoods,Strategic Housing,Homelessness Prevention,1147,Projects & Activities,09/07/20,Supplies & Services,111228,Neighbourhoods,Neighbourhoods
9940,Ade Regeneration,Capital Expenditure,Transformation & Innovation,Bingham Leisure Hub,314,Legal & Professional Services,23/09/20,Supplies & Services,113301,Capital Expenditure,Transformation
9544.55,Poly Advisory Limited,Capital Expenditure,Neighbourhoods,Clc - Pool Liner,416,Contractors-Third Party,16/07/20,Third Party Payments,111511,Capital Expenditure,Neighbourhoods
9500,Looking Local Ltd,Finance & Corporate Services,Ict,It Rechargeable Costs,4722,Maintenance Contracts - S&S,28/09/20,Supplies & Services,112944,Finance & Corporate Services,Transformation
9280.44,Horizon Landscapes Ltd,Capital Expenditure,Transformation & Innovation,Bingham Market Place Imps,379,Contractors-Third Party,24/07/20,Third Party Payments,111723,Capital Expenditure,Transformation
8877,Vipre Security Limited,Finance & Corporate Services,Ict,It Rechargeable Costs,4722,Cyber Security,29/07/20,Supplies & Services,111410,Finance & Corporate Services,Transformation
8000,Idox Software Limited,Capital Expenditure,Finance & Corporate,Applications/Apps,605,Software,16/07/20,Supplies & Services,111314,Capital Expenditure,Capital
7948,Mazars Llp,Finance & Corporate Services,Financial Services,Corporate Management,4895,External Audit Fee,20/07/20,Supplies & Services,111294,Finance & Corporate Services,Finance & Corporate Services
7421.74,Streetwise Environmental Ltd           1,Communities,Community Development,Facilities Team,4714,Cleaning Equipment/Materials,04/09/20,Supplies & Services,112671,Communities,Communities
7344,Geldards Llp,Capital Expenditure,Transformation & Innovation,Bingham Leisure Hub,314,Legal & Professional Services,21/09/20,Supplies & Services,112917,Capital Expenditure,Transformation
7075.5,South Kesteven District Council (Bc),Communities,Building Control,Building Control - Fee Earning,1151,Other Local Authorities,14/07/20,Third Party Payments,111393,Communities,Communities
7020.4,Frontline Recruitment Ltd,Neighbourhoods,Waste & Fleet Management,Waste Collection,8403,Agency Staff,04/09/20,Employee Related Expenditure,112736,Neighbourhoods,Neighbourhoods
7009.98,Frontline Recruitment Ltd,Neighbourhoods,Waste & Fleet Management,Waste Collection,8403,Agency Staff,15/09/20,Employee Related Expenditure,112915,Neighbourhoods,Neighbourhoods
6944,Storm Environmental Ltd,Capital Expenditure,Neighbourhoods,Wheeled Bins,310,Other Equipment/Materials,25/08/20,Supplies & Services,112282,Capital Expenditure,Capital
6843,Zurich Municipal,Finance & Corporate Services,Financial Services,Liability Claims,4921,Excesses Paid,20/07/20,Transfers Expenditure,111441,Finance & Corporate Services,Finance & Corporate Services
6766,Capita Business Services Ltd,Finance & Corporate Services,Ict,It Rechargeable Costs,4722,Software,25/08/20,Supplies & Services,112105,Finance & Corporate Services,Transformation
6759,Magpie Security Limited,Communities,Community Development,Arts,1550,Projects & Activities,21/07/20,Supplies & Services,111243,Communities,Communities
6714.5,Tunstall Response Ltd,Neighbourhoods,Strategic Housing,Home Alarms,1137,Other Services,04/09/20,Supplies & Services,112727,Neighbourhoods,Neighbourhoods
6416,Total Reclaims Demolition Ltd,Capital Expenditure,Transformation & Innovation,Abbey Road Redevelopment,312,Contractors-Third Party,25/08/20,Third Party Payments,112268,Capital Expenditure,Capital
6201.44,Frontline Recruitment Ltd,Neighbourhoods,Waste & Fleet Management,Waste Collection,8403,Agency Staff,06/08/20,Employee Related Expenditure,112109,Neighbourhoods,Neighbourhoods
6181.75,Frontline Recruitment Ltd,Neighbourhoods,Waste & Fleet Management,Waste Collection,8403,Agency Staff,08/09/20,Employee Related Expenditure,112663,Neighbourhoods,Neighbourhoods
6135,Lodge Tyre Co.Ltd,Neighbourhoods,Waste & Fleet Management,Waste Collection,8403,Tyres,04/09/20,Transport Related Expenditure,112862,Neighbourhoods,Neighbourhoods
6032.19,Severn Trent Water,Neighbourhoods,Waste & Fleet Management,Tanker Services,1948,Waste Disposal,06/08/20,Supplies & Services,111564,Neighbourhoods,Neighbourhoods
5983.63,Maverick Industries Ltd,Capital Expenditure,Communities,Skate Park Facilities The Hook,662,Contractors-Third Party,26/08/20,Third Party Payments,111624,Capital Expenditure,Communities
5911.85,Frontline Recruitment Ltd,Neighbourhoods,Waste & Fleet Management,Waste Collection,8403,Agency Staff,25/08/20,Employee Related Expenditure,112410,Neighbourhoods,Neighbourhoods
5784.71,Print Image Network Ltd,Finance & Corporate Services,Democratic Services,Electoral Registration,1026,External Printing,13/08/20,Supplies & Services,111941,Finance & Corporate Services,Finance & Corporate Services
5639.37,Frontline Recruitment Ltd,Neighbourhoods,Waste & Fleet Management,Waste Collection,8403,Agency Staff,13/08/20,Employee Related Expenditure,112255,Neighbourhoods,Neighbourhoods
5571,Knight Kavanagh And Page Ltd,Neighbourhoods,Leisure Contracts & Car Parks,Edwalton Golf Courses,1400,Legal & Professional Services,11/08/20,Supplies & Services,112058,Neighbourhoods,Finance & Corporate Services
5501,Frontline Recruitment Ltd,Neighbourhoods,Waste & Fleet Management,Waste Collection,8403,Agency Staff,13/07/20,Employee Related Expenditure,111166,Neighbourhoods,Neighbourhoods
5301.5,Lodge Tyre Co.Ltd,Neighbourhoods,Waste & Fleet Management,Waste Collection,8403,Tyres,08/07/20,Transport Related Expenditure,111163,Neighbourhoods,Neighbourhoods
5174.57,Local Partnerships,Capital Expenditure,Transformation & Innovation,Abbey Road Redevelopment,312,Legal & Professional Services,06/08/20,Supplies & Services,111721,Capital Expenditure,Capital
5145,Nottingham City Council,Finance & Corporate Services,Democratic Services,Members Services,1000,Subscriptions,20/07/20,Supplies & Services,111233,Finance & Corporate Services,Finance & Corporate Services
5055.5,Ghm Planning Limited,Communities,Planning & Growth,Development Control,1161,Agency Staff,04/09/20,Employee Related Expenditure,112709,Communities,Communities
5026,Ghm Planning Limited,Communities,Planning & Growth,Development Control,1161,Agency Staff,04/09/20,Employee Related Expenditure,112712,Communities,Communities
5000,Box Property Consultants Ltd,Capital Expenditure,Transformation & Innovation,Cotgrave Phase 2,387,Legal & Professional Services,27/07/20,Supplies & Services,111407,Capital Expenditure,Capital
5000,4d Tree Survey Ltd,Transformation,Property Services,Property Services,4713,Legal & Professional Services,14/07/20,Supplies & Services,111403,Transformation,Transformation
4927.81,Frontline Recruitment Ltd,Neighbourhoods,Waste & Fleet Management,Waste Collection,8403,Agency Staff,21/07/20,Employee Related Expenditure,111563,Neighbourhoods,Neighbourhoods
4927.81,Frontline Recruitment Ltd,Neighbourhoods,Waste & Fleet Management,Waste Collection,8403,Agency Staff,21/07/20,Employee Related Expenditure,111567,Neighbourhoods,Neighbourhoods
4843,Zurich Municipal,Finance & Corporate Services,Financial Services,Liability Claims,4921,Excesses Paid,02/07/20,Transfers Expenditure,110680,Finance & Corporate Services,Finance & Corporate Services
4838.77,Frontline Recruitment Ltd,Neighbourhoods,Waste & Fleet Management,Waste Collection,8403,Agency Staff,13/07/20,Employee Related Expenditure,111022,Neighbourhoods,Neighbourhoods
4763.06,Frontline Recruitment Ltd,Neighbourhoods,Waste & Fleet Management,Waste Collection,8403,Agency Staff,06/08/20,Employee Related Expenditure,111822,Neighbourhoods,Neighbourhoods
4669.16,Fulcrum Pipelines Limited,Capital Expenditure,Transformation & Innovation,Cotgrave Phase 2,387,Legal & Professional Services,09/09/20,Supplies & Services,112668,Capital Expenditure,Capital
4653.15,The National Leaflet Company,Finance & Corporate Services,"Performance, Repn & Comms",Performance And Reputation,4710,Other Services,14/07/20,Supplies & Services,111313,Finance & Corporate Services,Finance & Corporate Services
4572,Geldards Llp,Capital Expenditure,Transformation & Innovation,Bingham Leisure Hub,314,Legal & Professional Services,28/09/20,Supplies & Services,113361,Capital Expenditure,Transformation
4569.5,Lodge Tyre Co.Ltd,Neighbourhoods,Waste & Fleet Management,Waste Collection,8403,Tyres,06/08/20,Transport Related Expenditure,112108,Neighbourhoods,Neighbourhoods
4540,Ghm Planning Limited,Communities,Planning & Growth,Development Control,1161,Agency Staff,04/09/20,Employee Related Expenditure,112742,Communities,Communities
4540,Ghm Planning Limited,Communities,Planning & Growth,Development Control,1161,Agency Staff,04/09/20,Employee Related Expenditure,112743,Communities,Communities
4537,True Story,Transformation,Economic Regeneration,High Streets Safely,1881,Legal & Professional Services,11/09/20,Supplies & Services,112713,Transformation,Transformation
4533.5,Ghm Planning Limited,Communities,Planning & Growth,Development Control,1161,Agency Staff,04/09/20,Employee Related Expenditure,112710,Communities,Communities
4530,Ghm Planning Limited,Communities,Planning & Growth,Development Control,1161,Agency Staff,04/09/20,Employee Related Expenditure,112711,Communities,Communities
4519.1,Vodafone Limited,Finance & Corporate Services,Ict,It Rechargeable Costs,4722,Cyber Security,04/08/20,Supplies & Services,111634,Finance & Corporate Services,Transformation
4500,Visavvi Saville Group,Finance & Corporate Services,Ict,It Rechargeable Costs,4722,Maintenance Contracts - S&S,25/08/20,Supplies & Services,112173,Finance & Corporate Services,Transformation
4399.13,Frontline Recruitment Ltd,Neighbourhoods,Waste & Fleet Management,Waste Collection,8403,Agency Staff,21/09/20,Employee Related Expenditure,113084,Neighbourhoods,Neighbourhoods
4366.61,Terminal Four,Finance & Corporate Services,Ict,It Rechargeable Costs,4722,Maintenance Contracts - S&S,21/09/20,Supplies & Services,112733,Finance & Corporate Services,Transformation
4143.14,Frontline Recruitment Ltd,Neighbourhoods,Waste & Fleet Management,Waste Collection,8403,Agency Staff,23/09/20,Employee Related Expenditure,113467,Neighbourhoods,Neighbourhoods
4050,Retail Associated Services Ltd,Transformation,Economic Regeneration,High Streets Safely,1881,Legal & Professional Services,04/08/20,Supplies & Services,111831,Transformation,Transformation
3725,Suzanne Dempsey,Communities,Planning & Growth,Development Control,1161,Agency Staff,21/09/20,Employee Related Expenditure,113066,Communities,Communities
3630.6,Nottingham City Council,Transformation,Human Resources,Human Resources,4709,Agency Staff,02/09/20,Employee Related Expenditure,112723,Transformation,Transformation
3625,Idox Software Limited,Capital Expenditure,Finance & Corporate,Applications/Apps,605,Software,11/08/20,Supplies & Services,111737,Capital Expenditure,Capital
3472,Storm Environmental Ltd,Capital Expenditure,Neighbourhoods,Wheeled Bins,310,Other Equipment/Materials,11/08/20,Supplies & Services,111835,Capital Expenditure,Capital
3332,Parkwood Community Leisure,Neighbourhoods,Leisure Contracts & Car Parks,Leisure Management Contract,1795,Parkwood Contract,08/07/20,Third Party Payments,110750,Neighbourhoods,Finance & Corporate Services
3288.5,Freeth Cartwright Llp,Capital Expenditure,Transformation & Innovation,Cotgrave Phase 2,387,Legal & Professional Services,06/08/20,Supplies & Services,111960,Capital Expenditure,Capital
3240,Knight Kavanagh And Page Ltd,Neighbourhoods,Leisure Contracts & Car Parks,Leisure Management Contract,1795,Legal & Professional Services,04/09/20,Supplies & Services,112811,Neighbourhoods,Finance & Corporate Services
3215,Freeth Cartwright Llp,Transformation,Property Services,Land Holdings,1884,Legal & Professional Services,17/08/20,Supplies & Services,112301,Transformation,Transformation
3180,Pee Wee Toilet Hire,Communities,Community Development,Facilities Team,4714,Cleaning Equipment/Materials,19/08/20,Supplies & Services,112409,Communities,Communities
3060,Balderton Tile Centre Ltd,Capital Expenditure,Neighbourhoods,Arena Development,415,Contractors-Third Party,09/07/20,Third Party Payments,111203,Capital Expenditure,Neighbourhoods
3010.33,Toot Hill School,Neighbourhoods,Leisure Contracts & Car Parks,Leisure Management Contract,1795,Electricity,08/07/20,Premises Related Expenditure,110944,Neighbourhoods,Finance & Corporate Services
3000,Cushman And Wakefield Debenham Tie Leung Ltd,Communities,Planning & Growth,Development Control,1161,Legal & Professional Services,16/07/20,Supplies & Services,110978,Communities,Communities
2988.44,Toot Hill School,Neighbourhoods,Leisure Contracts & Car Parks,Leisure Management Contract,1795,Gas,19/08/20,Premises Related Expenditure,112094,Neighbourhoods,Finance & Corporate Services
2940,Civica Uk Ltd,Capital Expenditure,Finance & Corporate,Applications/Apps,605,Software,08/09/20,Supplies & Services,102184,Capital Expenditure,Capital
2910,Uk Property Rescue Ltd,Neighbourhoods,Environmental Health,Empty Homes Wid,1133,Contractors-Supplies & Servs,25/08/20,Supplies & Services,111516,Neighbourhoods,Neighbourhoods
2860,Paystream My Max Ltd,Finance & Corporate Services,Financial Services,Corporate Management,4895,Legal & Professional Services,17/08/20,Supplies & Services,111962,Finance & Corporate Services,Finance & Corporate Services
2820,Uk Property Rescue Ltd,Neighbourhoods,Environmental Health,Empty Homes Wid,1133,Contractors-Supplies & Servs,29/07/20,Supplies & Services,111515,Neighbourhoods,Neighbourhoods
2729,Wireless Cctv Ltd,Neighbourhoods,Environmental Health,Community Safety,1598,Projects & Activities,16/07/20,Supplies & Services,111261,Neighbourhoods,Neighbourhoods
2725.43,Toot Hill School,Neighbourhoods,Leisure Contracts & Car Parks,Leisure Management Contract,1795,Electricity,19/08/20,Premises Related Expenditure,112098,Neighbourhoods,Finance & Corporate Services
2700,Cushman And Wakefield Debenham Tie Leung Ltd,Communities,Planning & Growth,Development Control,1161,Legal & Professional Services,28/09/20,Supplies & Services,113485,Communities,Communities
2700,Bemrosebooth Paragon Ltd,Neighbourhoods,Environmental Health,Community Safety,1598,Projects & Activities,29/09/20,Supplies & Services,112841,Neighbourhoods,Neighbourhoods
2696.11,Toot Hill School,Neighbourhoods,Leisure Contracts & Car Parks,Leisure Management Contract,1795,Electricity,19/08/20,Premises Related Expenditure,112099,Neighbourhoods,Finance & Corporate Services
2567,Via East Midlands Ltd,Communities,Planning Policy,Land Charges,1033,Other Services,15/09/20,Supplies & Services,112941,Communities,Communities
2525,Greenhalgh Kerr,Finance & Corporate Services,Revenues & Benefits,Nndr,1038,Legal & Professional Services,06/08/20,Supplies & Services,112091,Finance & Corporate Services,Finance & Corporate Services
2445.5,Freeth Cartwright Llp,Capital Expenditure,Transformation & Innovation,Cotgrave Phase 2,387,Legal & Professional Services,06/07/20,Supplies & Services,111049,Capital Expenditure,Capital
2398,One51 Es Plastics (Uk) Ltd T/A Mgb Plastics,Neighbourhoods,Waste & Fleet Management,Glass Recycling & Bring Sites,8407,Other Equipment/Materials,11/08/20,Supplies & Services,111726,Neighbourhoods,Neighbourhoods
2350,Firebrand Training Ltd,Transformation,Human Resources,Corporate Training,4893,Training Expenses,17/09/20,Employee Related Expenditure,113140,Transformation,Transformation
2280,Shawn Ryan,Capital Expenditure,Transformation & Innovation,Cotgrave Phase 2,387,Legal & Professional Services,23/09/20,Supplies & Services,113466,Capital Expenditure,Capital
2250,Cp Viability Ltd,Communities,Planning & Growth,Development Control,1161,Legal & Professional Services,06/08/20,Supplies & Services,111561,Communities,Communities
2248,One51 Es Plastics (Uk) Ltd T/A Mgb Plastics,Neighbourhoods,Waste & Fleet Management,Glass Recycling & Bring Sites,8407,Other Equipment/Materials,11/08/20,Supplies & Services,111724,Neighbourhoods,Neighbourhoods
2248,One51 Es Plastics (Uk) Ltd T/A Mgb Plastics,Neighbourhoods,Waste & Fleet Management,Glass Recycling & Bring Sites,8407,Other Equipment/Materials,11/08/20,Supplies & Services,111725,Neighbourhoods,Neighbourhoods
2215.97,Toot Hill School,Neighbourhoods,Leisure Contracts & Car Parks,Leisure Management Contract,1795,Gas,19/08/20,Premises Related Expenditure,112095,Neighbourhoods,Finance & Corporate Services
2144.55,Vodafone Limited,Finance & Corporate Services,Ict,It Rechargeable Costs,4722,Cyber Security,04/08/20,Supplies & Services,111749,Finance & Corporate Services,Transformation
2016,Phoenix Software,Finance & Corporate Services,Ict,It Rechargeable Costs,4722,Software,16/07/20,Supplies & Services,104097,Finance & Corporate Services,Transformation
2015.3,Nottingham City Council,Transformation,Human Resources,Human Resources,4709,Agency Staff,21/09/20,Employee Related Expenditure,113292,Transformation,Transformation
2000,Inform Cpi Ltd,Finance & Corporate Services,Revenues & Benefits,Nndr,1038,Legal & Professional Services,11/09/20,Supplies & Services,112931,Finance & Corporate Services,Finance & Corporate Services
2000,Pixel Financial Management Ltd,Finance & Corporate Services,Financial Services,Financial Services,4705,Professional Subscriptions,08/09/20,Employee Related Expenditure,112687,Finance & Corporate Services,Finance & Corporate Services
2000,Cornerstone Barristers,Neighbourhoods,Environmental Health,Housing Standards,1129,Legal & Professional Services,17/09/20,Supplies & Services,113132,Neighbourhoods,Neighbourhoods
2000,Focus Consultants Llp,Transformation,Economic Regeneration,High Streets Safely,1881,Legal & Professional Services,06/08/20,Supplies & Services,112051,Transformation,Transformation
2000,Pinders,Capital Expenditure,Transformation & Innovation,Bingham Leisure Hub,314,Legal & Professional Services,15/09/20,Supplies & Services,112748,Capital Expenditure,Transformation
1988.01,Service Level Management Ltd,Transformation,Bsu,Central Mail,4871,Postages,29/09/20,Supplies & Services,112822,Transformation,Transformation
1955.16,Phoenix Software,Finance & Corporate Services,Ict,It Rechargeable Costs,4722,Cyber Security,04/08/20,Supplies & Services,111614,Finance & Corporate Services,Transformation
1942.38,Print Image Network Ltd,Assets,Current Assets,Police & Commissioner Election,7104,External Printing,02/07/20,Supplies & Services,110823,Assets,Finance & Corporate Services
1890,Ludlow Hill Mot Centre,Neighbourhoods,Environmental Health,Hackney Carriage/Private Hire,1031,Contractors-Transport,17/09/20,Transport Related Expenditure,113137,Neighbourhoods,Neighbourhoods
1836.62,Vinshire Plumbing & Heating Limited,Capital Expenditure,Communities,Warm Homes On Prescription,337,Contractors-Supplies & Servs,21/09/20,Supplies & Services,112810,Capital Expenditure,Communities
1835,Dta Electrical,Neighbourhoods,Strategic Housing,Hostel Hound Lodge,1111,Planned Maintenance Recharge,25/08/20,Supplies & Services,112286,Neighbourhoods,Neighbourhoods
1825.09,Castle Water Limited,Neighbourhoods,Waste & Fleet Management,Abbey Road Depot,4001,Water Charges,11/08/20,Premises Related Expenditure,112123,Neighbourhoods,Neighbourhoods
1754.98,Edf Energy,Neighbourhoods,Leisure Contracts & Car Parks,Car Parks,1900,Electricity,19/08/20,Premises Related Expenditure,112265,Neighbourhoods,Finance & Corporate Services
1750,Pinders,Capital Expenditure,Transformation & Innovation,Bingham Leisure Hub,314,Legal & Professional Services,25/08/20,Supplies & Services,112499,Capital Expenditure,Transformation
1734,Freeth Cartwright Llp,Transformation,Property Services,Land Holdings,1884,Legal & Professional Services,02/07/20,Supplies & Services,111050,Transformation,Transformation
1725,Mascot Management Ltd,Capital Expenditure,Transformation & Innovation,Cotgrave Phase 2,387,Legal & Professional Services,19/08/20,Supplies & Services,112140,Capital Expenditure,Capital
1702.31,Nsl Limited,Neighbourhoods,Leisure Contracts & Car Parks,Car Parks,1900,Maintenance Contracts - S&S,20/07/20,Supplies & Services,111178,Neighbourhoods,Finance & Corporate Services
1650,Kch Garden Sq Barristers,Transformation,Legal,Legal Services,4701,Other Income,19/08/20,Income,111964,Transformation,Finance & Corporate Services
1650,Nottingham City Council,Transformation,Economic Regeneration,Economic Development,1887,Legal & Professional Services,16/07/20,Supplies & Services,109964,Transformation,Transformation
1620,Ep Consulting Building Services Engineers,Capital Expenditure,Transformation & Innovation,Cotgrave Phase 2,387,Legal & Professional Services,08/09/20,Supplies & Services,112807,Capital Expenditure,Capital
1600,Bentley Project Management,Capital Expenditure,Transformation & Innovation,Cotgrave Phase 2,387,Legal & Professional Services,20/07/20,Supplies & Services,111280,Capital Expenditure,Capital
1600,Bentley Project Management,Capital Expenditure,Transformation & Innovation,Cotgrave Phase 2,387,Legal & Professional Services,19/08/20,Supplies & Services,112287,Capital Expenditure,Capital
1600,Bentley Project Management,Capital Expenditure,Transformation & Innovation,Cotgrave Phase 2,387,Legal & Professional Services,21/09/20,Supplies & Services,112833,Capital Expenditure,Capital
1585.5,Nottinghamshire County Council,Communities,Planning Policy,Land Charges,1033,Other Services,28/09/20,Supplies & Services,113305,Communities,Communities
1575,Ludlow Hill Mot Centre,Neighbourhoods,Environmental Health,Hackney Carriage/Private Hire,1031,Contractors-Transport,17/09/20,Transport Related Expenditure,113138,Neighbourhoods,Neighbourhoods
1543.26,Thorn Baker Limited,Neighbourhoods,Waste & Fleet Management,Waste Collection,8403,Agency Staff,06/08/20,Employee Related Expenditure,111963,Neighbourhoods,Neighbourhoods
1521,Mbh Sealants Ltd,Capital Expenditure,Neighbourhoods,Arena Development,415,Contractors-Third Party,19/08/20,Third Party Payments,112324,Capital Expenditure,Neighbourhoods
1521,Mbh Sealants Ltd,Capital Expenditure,Neighbourhoods,Arena Development,415,Contractors-Third Party,25/08/20,Third Party Payments,112377,Capital Expenditure,Neighbourhoods
1483.5,Zurich Municipal,Finance & Corporate Services,Financial Services,Liability Claims,4921,Excesses Paid,19/08/20,Transfers Expenditure,112251,Finance & Corporate Services,Finance & Corporate Services
1476.96,Sse Payment Centre,Transformation,Customer Services,Customer Services,4807,Electricity,04/08/20,Premises Related Expenditure,111650,Transformation,Transformation
1455,Freeth Cartwright Llp,Transformation,Property Services,Land Holdings,1884,Legal & Professional Services,25/08/20,Supplies & Services,112297,Transformation,Transformation
1449.04,Inplace Personnel,Neighbourhoods,Waste & Fleet Management,Waste Collection,8403,Agency Staff,13/07/20,Employee Related Expenditure,111164,Neighbourhoods,Neighbourhoods
1443.81,Nsl Limited,Neighbourhoods,Leisure Contracts & Car Parks,Car Parks,1900,Maintenance Contracts - S&S,19/08/20,Supplies & Services,112114,Neighbourhoods,Finance & Corporate Services
1443.35,Park Avenue,Communities,Planning & Growth,Development Control,1161,Agency Staff,21/07/20,Employee Related Expenditure,111546,Communities,Communities
1440.2,Park Avenue,Communities,Planning & Growth,Development Control,1161,Agency Staff,19/08/20,Employee Related Expenditure,112413,Communities,Communities
1436.6,Park Avenue,Communities,Planning & Growth,Development Control,1161,Agency Staff,08/09/20,Employee Related Expenditure,112842,Communities,Communities
1435,Browne Jacobson,Capital Income,Capital Receipts,"Sharphill, Edwalton (Wells Lan",9081,Legal & Professional Services,27/07/20,Supplies & Services,111208,Capital Income,Transformation
1434.8,Park Avenue,Communities,Planning & Growth,Development Control,1161,Agency Staff,19/08/20,Employee Related Expenditure,112295,Communities,Communities
1434.35,Park Avenue,Communities,Planning & Growth,Development Control,1161,Agency Staff,08/09/20,Employee Related Expenditure,112834,Communities,Communities
1433.9,Park Avenue,Communities,Planning & Growth,Development Control,1161,Agency Staff,06/08/20,Employee Related Expenditure,111744,Communities,Communities
1432.55,Park Avenue,Communities,Planning & Growth,Development Control,1161,Agency Staff,06/08/20,Employee Related Expenditure,111967,Communities,Communities
1430.75,Park Avenue,Communities,Planning & Growth,Development Control,1161,Agency Staff,16/07/20,Employee Related Expenditure,111176,Communities,Communities
1425,Idox Software Limited,Capital Expenditure,Finance & Corporate,Applications/Apps,605,Software,08/07/20,Supplies & Services,110930,Capital Expenditure,Capital
1424.9,Park Avenue,Communities,Planning & Growth,Development Control,1161,Agency Staff,19/08/20,Employee Related Expenditure,112300,Communities,Communities
1388.25,Park Avenue,Communities,Planning & Growth,Development Control,1161,Agency Staff,21/07/20,Employee Related Expenditure,111545,Communities,Communities
1369,Vivid Resourcing (G2v Recruitment Group Ltd),Communities,Planning & Growth,Development Control,1161,Agency Staff,06/07/20,Employee Related Expenditure,110772,Communities,Communities
1369,Vivid Resourcing (G2v Recruitment Group Ltd),Communities,Planning & Growth,Development Control,1161,Agency Staff,16/07/20,Employee Related Expenditure,111046,Communities,Communities
1369,Vivid Resourcing (G2v Recruitment Group Ltd),Communities,Planning & Growth,Development Control,1161,Agency Staff,21/07/20,Employee Related Expenditure,111206,Communities,Communities
1369,Vivid Resourcing (G2v Recruitment Group Ltd),Communities,Planning & Growth,Development Control,1161,Agency Staff,29/07/20,Employee Related Expenditure,111562,Communities,Communities
1369,Vivid Resourcing (G2v Recruitment Group Ltd),Communities,Planning & Growth,Development Control,1161,Agency Staff,06/08/20,Employee Related Expenditure,111969,Communities,Communities
1369,Vivid Resourcing (G2v Recruitment Group Ltd),Communities,Planning & Growth,Development Control,1161,Agency Staff,11/08/20,Employee Related Expenditure,111739,Communities,Communities
1369,Vivid Resourcing (G2v Recruitment Group Ltd),Communities,Planning & Growth,Development Control,1161,Agency Staff,25/08/20,Employee Related Expenditure,112167,Communities,Communities
1369,Vivid Resourcing (G2v Recruitment Group Ltd),Communities,Planning & Growth,Development Control,1161,Agency Staff,04/09/20,Employee Related Expenditure,112719,Communities,Communities
1369,Vivid Resourcing (G2v Recruitment Group Ltd),Communities,Planning & Growth,Development Control,1161,Agency Staff,08/09/20,Employee Related Expenditure,112529,Communities,Communities
1369,Vivid Resourcing (G2v Recruitment Group Ltd),Communities,Planning & Growth,Development Control,1161,Agency Staff,08/09/20,Employee Related Expenditure,112849,Communities,Communities
1369,Vivid Resourcing (G2v Recruitment Group Ltd),Communities,Planning & Growth,Development Control,1161,Agency Staff,28/09/20,Employee Related Expenditure,113346,Communities,Communities
1368,Park Avenue,Communities,Planning & Growth,Development Control,1161,Agency Staff,16/07/20,Employee Related Expenditure,111174,Communities,Communities
1367.87,Thorn Baker Limited,Neighbourhoods,Waste & Fleet Management,Waste Collection,8403,Agency Staff,13/07/20,Employee Related Expenditure,111217,Neighbourhoods,Neighbourhoods
1355.73,Vodafone Limited,Finance & Corporate Services,Ict,It Rechargeable Costs,4722,Cyber Security,04/08/20,Supplies & Services,111968,Finance & Corporate Services,Transformation
1349,Midland Signs Leicester Ltd,Transformation,Property Services,Street Nameplates & Pub. Signs,1920,Contractors-Supplies & Servs,04/09/20,Supplies & Services,112417,Transformation,Transformation
1344,Phoenix Software,Finance & Corporate Services,Ict,It Rechargeable Costs,4722,Software,16/07/20,Supplies & Services,111297,Finance & Corporate Services,Transformation
1334.67,Live And Local Limited,Communities,Community Development,Arts,1550,Projects & Activities,25/08/20,Supplies & Services,112414,Communities,Communities
1334.67,Live And Local Limited,Communities,Community Development,Arts,1550,Projects & Activities,15/09/20,Supplies & Services,109221,Communities,Communities
1331.2,Service Level Management Ltd,Transformation,Bsu,Central Mail,4871,Postages,29/07/20,Supplies & Services,111268,Transformation,Transformation
1321.89,Royal Mail Group Ltd,Transformation,Bsu,Business Support Unit,4805,Postages,24/07/20,Supplies & Services,111450,Transformation,Transformation
1317.85,Nsl Limited,Neighbourhoods,Leisure Contracts & Car Parks,Car Parks,1900,Maintenance Contracts - S&S,21/09/20,Supplies & Services,112832,Neighbourhoods,Finance & Corporate Services
1315.6,Print Image Facilities Llp,Finance & Corporate Services,Democratic Services,Electoral Registration,1026,Postages,04/09/20,Supplies & Services,112813,Finance & Corporate Services,Finance & Corporate Services
1306.62,Print Image Network Ltd,Finance & Corporate Services,Democratic Services,Electoral Registration,1026,External Printing,19/08/20,Supplies & Services,112100,Finance & Corporate Services,Finance & Corporate Services
1295,Vivid Resourcing (G2v Recruitment Group Ltd),Communities,Planning & Growth,Development Control,1161,Agency Staff,27/07/20,Employee Related Expenditure,111414,Communities,Communities
1260,Inplace Personnel,Neighbourhoods,Waste & Fleet Management,Waste Collection,8403,Agency Staff,13/07/20,Employee Related Expenditure,111165,Neighbourhoods,Neighbourhoods
1260,Inplace Personnel,Neighbourhoods,Waste & Fleet Management,Waste Collection,8403,Agency Staff,21/07/20,Employee Related Expenditure,111443,Neighbourhoods,Neighbourhoods
1260,Inplace Personnel,Neighbourhoods,Waste & Fleet Management,Waste Collection,8403,Agency Staff,06/08/20,Employee Related Expenditure,111748,Neighbourhoods,Neighbourhoods
1250,Bsp Consulting,Capital Expenditure,Transformation & Innovation,Cotgrave Phase 2,387,Legal & Professional Services,11/09/20,Supplies & Services,112701,Capital Expenditure,Capital
1250,Bsp Consulting,Capital Expenditure,Transformation & Innovation,Cotgrave Phase 2,387,Legal & Professional Services,15/09/20,Supplies & Services,113047,Capital Expenditure,Capital
1240,Thorn Baker Limited,Neighbourhoods,Waste & Fleet Management,Waste Collection,8403,Agency Staff,13/07/20,Employee Related Expenditure,111043,Neighbourhoods,Neighbourhoods
1233.55,Service Level Management Ltd,Transformation,Bsu,Central Mail,4871,Postages,02/09/20,Supplies & Services,112146,Transformation,Transformation
1202.5,Vivid Resourcing (G2v Recruitment Group Ltd),Communities,Planning & Growth,Development Control,1161,Agency Staff,15/09/20,Employee Related Expenditure,113058,Communities,Communities
1198.57,Nottingham City Council,Neighbourhoods,Waste & Fleet Management,Eastcroft Depot,4002,Olas - Nottm City Council,21/07/20,Third Party Payments,111652,Neighbourhoods,Neighbourhoods
1188.39,Nottingham City Council,Neighbourhoods,Waste & Fleet Management,Eastcroft Depot,4002,Olas - Nottm City Council,15/09/20,Third Party Payments,113126,Neighbourhoods,Neighbourhoods
1158.01,Lincolnshire & Nottinghamshire Air Ambulance,Liabilities,Current Liabilities,Mayor'S Charity 2019/20 Jeffre,5219,Cash Received,08/09/20,Cash Received,112715,Liabilities,Finance & Corporate Services
1157.5,Headway Nottingham Ltd,Liabilities,Current Liabilities,Mayor'S Charity 2019/20 Jeffre,5219,Cash Received,08/09/20,Cash Received,112714,Liabilities,Finance & Corporate Services
1151.97,Service Level Management Ltd,Transformation,Bsu,Central Mail,4871,Postages,06/07/20,Supplies & Services,110499,Transformation,Transformation
1150,Mies Facilties Management Ltd,Neighbourhoods,Leisure Contracts & Car Parks,Leisure Management Contract,1795,Responsive Works - Buildings,02/09/20,Premises Related Expenditure,112423,Neighbourhoods,Finance & Corporate Services
1147.5,Haymarket Media Group,Communities,Planning & Growth,Development Control,1161,Subscriptions,11/09/20,Supplies & Services,112508,Communities,Communities
1147.5,Haymarket Media Group,Communities,Planning Policy,Development Plans,1232,Subscriptions,11/09/20,Supplies & Services,112508,Communities,Communities
1145.9,Service Level Management Ltd,Transformation,Bsu,Central Mail,4871,Postages,29/07/20,Supplies & Services,111288,Transformation,Transformation
1142.48,Reach Publishing Services Limited,Communities,Planning & Growth,Development Control,1161,Advertising,16/07/20,Supplies & Services,111538,Communities,Communities
1141.95,Royal Mail Group Ltd,Transformation,Bsu,Business Support Unit,4805,Postages,28/09/20,Supplies & Services,113062,Transformation,Transformation
1134,Inplace Personnel,Neighbourhoods,Waste & Fleet Management,Waste Collection,8403,Agency Staff,06/08/20,Employee Related Expenditure,111823,Neighbourhoods,Neighbourhoods
1134,Inplace Personnel,Neighbourhoods,Waste & Fleet Management,Waste Collection,8403,Agency Staff,06/08/20,Employee Related Expenditure,112112,Neighbourhoods,Neighbourhoods
1125,Ludlow Hill Mot Centre,Neighbourhoods,Environmental Health,Hackney Carriage/Private Hire,1031,Contractors-Transport,09/07/20,Transport Related Expenditure,111216,Neighbourhoods,Neighbourhoods
1124.11,Service Level Management Ltd,Transformation,Bsu,Central Mail,4871,Postages,02/09/20,Supplies & Services,112148,Transformation,Transformation
1116,Thorn Baker Limited,Neighbourhoods,Waste & Fleet Management,Waste Collection,8403,Agency Staff,21/07/20,Employee Related Expenditure,111420,Neighbourhoods,Neighbourhoods
1116,Thorn Baker Limited,Neighbourhoods,Waste & Fleet Management,Waste Collection,8403,Agency Staff,06/08/20,Employee Related Expenditure,112106,Neighbourhoods,Neighbourhoods
1100,Inform Cpi Ltd,Finance & Corporate Services,Revenues & Benefits,Nndr,1038,Legal & Professional Services,17/09/20,Supplies & Services,113093,Finance & Corporate Services,Finance & Corporate Services
1085.73,Castle Water Limited,Communities,Community Development,Gamston Community Hall,8992,Water Charges,19/08/20,Premises Related Expenditure,112122,Communities,Communities
1082.9,Nottingham City Council,Neighbourhoods,Waste & Fleet Management,Eastcroft Depot,4002,Olas - Nottm City Council,15/09/20,Third Party Payments,113129,Neighbourhoods,Neighbourhoods
1075.23,Print Image Network Ltd,Finance & Corporate Services,Democratic Services,Electoral Registration,1026,External Printing,15/09/20,Supplies & Services,112745,Finance & Corporate Services,Finance & Corporate Services
1035.84,Reach Publishing Services Limited,Communities,Planning & Growth,Development Control,1161,Advertising,15/09/20,Supplies & Services,113039,Communities,Communities
1025,Enforcement Bailiffs Ltd T/A Quality Bailiffs,Communities,Community Development,Parks & Playing Fields-Gen,8910,Contingency,24/07/20,Supplies & Services,111194,Communities,Communities
1018.14,Royal Mail Group Ltd,Transformation,Bsu,Central Mail,4871,Postages,25/08/20,Supplies & Services,112378,Transformation,Transformation
1000,Ep Consulting Building Services Engineers,Capital Expenditure,Transformation & Innovation,Cotgrave Phase 2,387,Legal & Professional Services,15/09/20,Supplies & Services,112706,Capital Expenditure,Capital
1000,Ade Regeneration,Capital Expenditure,Transformation & Innovation,Bingham Leisure Hub,314,Legal & Professional Services,28/09/20,Supplies & Services,113344,Capital Expenditure,Transformation
1000,Rural Retailers Ltd,Transformation,Economic Regeneration,Bingham Market Stalls,1880,Legal & Professional Services,06/08/20,Supplies & Services,112165,Transformation,Transformation
995,Air Movement & Fabrications Ltd,Neighbourhoods,Leisure Contracts & Car Parks,Leisure Management Contract,1795,Responsive Works - Buildings,24/07/20,Premises Related Expenditure,111519,Neighbourhoods,Finance & Corporate Services
993.67,Service Level Management Ltd,Transformation,Bsu,Central Mail,4871,Postages,02/09/20,Supplies & Services,112149,Transformation,Transformation
992,Thorn Baker Limited,Neighbourhoods,Waste & Fleet Management,Waste Collection,8403,Agency Staff,06/08/20,Employee Related Expenditure,111636,Neighbourhoods,Neighbourhoods
992,Thorn Baker Limited,Neighbourhoods,Waste & Fleet Management,Waste Collection,8403,Agency Staff,13/08/20,Employee Related Expenditure,112302,Neighbourhoods,Neighbourhoods
980,Zurich Municipal,Finance & Corporate Services,Financial Services,Main Premiums,4920,Miscellaneous Insurances,08/09/20,Supplies & Services,112681,Finance & Corporate Services,Finance & Corporate Services
976.53,Service Level Management Ltd,Transformation,Bsu,Central Mail,4871,Postages,29/09/20,Supplies & Services,112823,Transformation,Transformation
954.27,Castle Water Limited,Neighbourhoods,Leisure Contracts & Car Parks,Car Parks,1900,Water Charges,11/08/20,Premises Related Expenditure,112126,Neighbourhoods,Finance & Corporate Services
954.27,Castle Water Limited,Neighbourhoods,Leisure Contracts & Car Parks,Car Parks,1900,Water Charges,11/08/20,Premises Related Expenditure,112129,Neighbourhoods,Finance & Corporate Services
954.27,Castle Water Limited,Neighbourhoods,Leisure Contracts & Car Parks,Car Parks,1900,Water Charges,11/08/20,Premises Related Expenditure,112131,Neighbourhoods,Finance & Corporate Services
950.73,Reach Publishing Services Limited,Communities,Planning & Growth,Development Control,1161,Advertising,25/08/20,Supplies & Services,112275,Communities,Communities
950,Bartec Auto Id Ltd,Neighbourhoods,Waste & Fleet Management,Glass Recycling & Bring Sites,8407,Other Equipment/Materials,20/07/20,Supplies & Services,110283,Neighbourhoods,Neighbourhoods
943.5,Vivid Resourcing (G2v Recruitment Group Ltd),Communities,Planning & Growth,Development Control,1161,Agency Staff,26/08/20,Employee Related Expenditure,112372,Communities,Communities
931,Park Avenue,Communities,Planning & Growth,Development Control,1161,Agency Staff,16/07/20,Employee Related Expenditure,111175,Communities,Communities
925,Challenge Consulting,Transformation,Human Resources,Corporate Training,4893,Training Expenses,26/08/20,Employee Related Expenditure,112428,Transformation,Transformation
914.16,Service Level Management Ltd,Transformation,Bsu,Central Mail,4871,Postages,29/07/20,Supplies & Services,111289,Transformation,Transformation
910.41,Service Level Management Ltd,Transformation,Bsu,Central Mail,4871,Postages,29/07/20,Supplies & Services,111287,Transformation,Transformation
910,Freeth Cartwright Llp,Transformation,Property Services,Land Holdings,1884,Legal & Professional Services,23/09/20,Supplies & Services,112845,Transformation,Transformation
904.78,Service Level Management Ltd,Transformation,Bsu,Central Mail,4871,Postages,06/07/20,Supplies & Services,110500,Transformation,Transformation
900,Pee Wee Toilet Hire,Communities,Community Development,Facilities Team,4714,Cleaning Equipment/Materials,02/09/20,Supplies & Services,112657,Communities,Communities
900,Systemair Limited,Transformation,Property Services,Arena Civic Centre,4718,Service Maintenance Contracts,27/07/20,Premises Related Expenditure,111432,Transformation,Transformation
882,Inplace Personnel,Neighbourhoods,Waste & Fleet Management,Waste Collection,8403,Agency Staff,04/09/20,Employee Related Expenditure,112672,Neighbourhoods,Neighbourhoods
874.55,Service Level Management Ltd,Transformation,Bsu,Central Mail,4871,Postages,06/07/20,Supplies & Services,110498,Transformation,Transformation
861.57,Killgerm Chemicals Ltd,Neighbourhoods,Environmental Health,Pest Control,1062,Other Equipment/Materials,29/07/20,Supplies & Services,111440,Neighbourhoods,Neighbourhoods
850,Kch Garden Sq Barristers,Transformation,Legal,Legal Services,4701,Other Income,23/09/20,Income,113501,Transformation,Finance & Corporate Services
850,Notts County Council,Neighbourhoods,Environmental Health,Community Safety,1598,Projects & Activities,15/09/20,Supplies & Services,112965,Neighbourhoods,Neighbourhoods
850,Dta Electrical,Transformation,Property Services,Bridgford Hall,1883,Service Maintenance Contracts,06/08/20,Premises Related Expenditure,111949,Transformation,Transformation
847,Daykin Floor Renovation Ltd,Communities,Community Development,Sir Julien Cahn Pavilion,8993,Service Maintenance Contracts,15/09/20,Premises Related Expenditure,112803,Communities,Communities
823.28,Service Level Management Ltd,Transformation,Bsu,Central Mail,4871,Postages,06/07/20,Supplies & Services,110469,Transformation,Transformation
820,Storm Environmental Ltd,Capital Expenditure,Neighbourhoods,Wheeled Bins,310,Other Equipment/Materials,08/09/20,Supplies & Services,112660,Capital Expenditure,Capital
819.04,Inplace Personnel,Neighbourhoods,Waste & Fleet Management,Waste Collection,8403,Agency Staff,15/09/20,Employee Related Expenditure,112869,Neighbourhoods,Neighbourhoods
818,Midland Regional Printers Ltd,Finance & Corporate Services,"Performance, Repn & Comms",Performance And Reputation,4710,External Printing,04/09/20,Supplies & Services,112498,Finance & Corporate Services,Finance & Corporate Services
806,Thorn Baker Limited,Neighbourhoods,Waste & Fleet Management,Waste Collection,8403,Agency Staff,15/09/20,Employee Related Expenditure,112928,Neighbourhoods,Neighbourhoods
800,Kch Garden Sq Barristers,Neighbourhoods,Environmental Health,Envirocrime,1124,Contractors-Supplies & Servs,14/07/20,Supplies & Services,111202,Neighbourhoods,Neighbourhoods
800,Nottingham City Council,Transformation,Human Resources,Human Resources,4709,Agency Staff,16/07/20,Employee Related Expenditure,111240,Transformation,Transformation
800,Rural Retailers Ltd,Transformation,Economic Regeneration,Bingham Market Stalls,1880,Legal & Professional Services,04/09/20,Supplies & Services,112818,Transformation,Transformation
796.43,Service Level Management Ltd,Transformation,Bsu,Central Mail,4871,Postages,02/09/20,Supplies & Services,112172,Transformation,Transformation
794.26,Service Level Management Ltd,Transformation,Bsu,Central Mail,4871,Postages,29/09/20,Supplies & Services,112820,Transformation,Transformation
784.35,Reach Publishing Services Limited,Communities,Planning & Growth,Development Control,1161,Advertising,25/08/20,Supplies & Services,112509,Communities,Communities
780.26,Lyreco,Communities,Community Development,Facilities Team,4714,Cleaning Equipment/Materials,25/08/20,Supplies & Services,112071,Communities,Communities
760,Park Avenue,Communities,Planning & Growth,Development Control,1161,Agency Staff,21/09/20,Employee Related Expenditure,113096,Communities,Communities
750,Pee Wee Toilet Hire,Communities,Community Development,Facilities Team,4714,Cleaning Equipment/Materials,02/09/20,Supplies & Services,112536,Communities,Communities
749.4,Tunstall Response Ltd,Neighbourhoods,Strategic Housing,Home Alarms,1137,Other Equipment/Materials,19/08/20,Supplies & Services,111834,Neighbourhoods,Neighbourhoods
747,Reach Publishing Services Limited,Communities,Planning & Growth,Development Control,1161,Advertising,13/07/20,Supplies & Services,111262,Communities,Communities
713,Thorn Baker Limited,Neighbourhoods,Waste & Fleet Management,Waste Collection,8403,Agency Staff,15/09/20,Employee Related Expenditure,112744,Neighbourhoods,Neighbourhoods
712.5,Quantum Fire & Security Ltd,Transformation,Property Services,New Offices - Cotgrave,4798,Service Maintenance Contracts,28/09/20,Premises Related Expenditure,112964,Transformation,Transformation
705.12,Cotgrave Town Council,Transformation,Economic Regeneration,Cotgrave Precinct,1885,Grounds Maintenance,21/09/20,Premises Related Expenditure,113314,Transformation,Transformation
700,Licence Check Ltd,Neighbourhoods,Environmental Health,Hackney Carriage/Private Hire,1031,Other Equipment/Materials,13/07/20,Supplies & Services,111026,Neighbourhoods,Neighbourhoods
697.5,Freeth Cartwright Llp,Capital Expenditure,Transformation & Innovation,Cotgrave Phase 2,387,Legal & Professional Services,16/07/20,Supplies & Services,111445,Capital Expenditure,Capital
686.79,Service Level Management Ltd,Transformation,Bsu,Central Mail,4871,Postages,02/09/20,Supplies & Services,112147,Transformation,Transformation
686.14,Eon,Transformation,Property Services,Unit 10 Moorbridge,4788,Electricity,17/08/20,Premises Related Expenditure,112320,Transformation,Transformation
682.98,Reach Publishing Services Limited,Communities,Planning & Growth,Development Control,1161,Advertising,02/09/20,Supplies & Services,112702,Communities,Communities
675.23,Nottinghamshire County Council,Neighbourhoods,Leisure Contracts & Car Parks,Leisure Management Contract,1795,Grounds Maintenance,29/07/20,Premises Related Expenditure,111179,Neighbourhoods,Finance & Corporate Services
675.23,Nottinghamshire County Council,Neighbourhoods,Leisure Contracts & Car Parks,Leisure Management Contract,1795,Grounds Maintenance,06/08/20,Premises Related Expenditure,112096,Neighbourhoods,Finance & Corporate Services
675.23,Nottinghamshire County Council,Neighbourhoods,Leisure Contracts & Car Parks,Leisure Management Contract,1795,Grounds Maintenance,09/09/20,Premises Related Expenditure,112840,Neighbourhoods,Finance & Corporate Services
673.88,Eon,Transformation,Property Services,Unit 10 Moorbridge,4788,Electricity,17/09/20,Premises Related Expenditure,112933,Transformation,Transformation
664,Pure Washrooms Ltd,Communities,Community Development,Facilities Team,4714,Other Equipment/Materials,02/09/20,Supplies & Services,111827,Communities,Communities
650,Hex Productions,Finance & Corporate Services,"Performance, Repn & Comms",Performance And Reputation,4710,Legal & Professional Services,14/07/20,Supplies & Services,111264,Finance & Corporate Services,Finance & Corporate Services
650,Hex Productions,Finance & Corporate Services,"Performance, Repn & Comms",Performance And Reputation,4710,Legal & Professional Services,06/08/20,Supplies & Services,112070,Finance & Corporate Services,Finance & Corporate Services
650,Hex Productions,Finance & Corporate Services,"Performance, Repn & Comms",Performance And Reputation,4710,Legal & Professional Services,08/09/20,Supplies & Services,112760,Finance & Corporate Services,Finance & Corporate Services
650,Inform Cpi Ltd,Finance & Corporate Services,Revenues & Benefits,Nndr,1038,Legal & Professional Services,29/07/20,Supplies & Services,111635,Finance & Corporate Services,Finance & Corporate Services
650,Kch Garden Sq Barristers,Transformation,Legal,Legal Services,4701,Other Income,23/09/20,Income,113342,Transformation,Finance & Corporate Services
650,Capita Business Services Ltd,Finance & Corporate Services,Ict,It Rechargeable Costs,4722,Legal & Professional Services,15/09/20,Supplies & Services,112750,Finance & Corporate Services,Transformation
645,The Knowledge Academy Ltd,Transformation,Human Resources,Corporate Training,4893,Training Expenses,21/09/20,Employee Related Expenditure,113362,Transformation,Transformation
644.95,Normanton Screenprint,Neighbourhoods,Environmental Health,Envirocrime,1124,Contractors-Supplies & Servs,11/08/20,Supplies & Services,112087,Neighbourhoods,Neighbourhoods
639.6,A.M Goodfellow Ltd,Neighbourhoods,Waste & Fleet Management,Waste Collection,8403,Agency Staff,21/09/20,Employee Related Expenditure,112919,Neighbourhoods,Neighbourhoods
637.5,Wilford Lane Garage & Autocentre,Neighbourhoods,Environmental Health,Hackney Carriage/Private Hire,1031,Contractors-Transport,27/08/20,Transport Related Expenditure,112420,Neighbourhoods,Neighbourhoods
636.7,Eon,Transformation,Property Services,Unit 10 Moorbridge,4788,Gas,14/07/20,Premises Related Expenditure,111222,Transformation,Transformation
635,Medigold Health Consultancy Ltd,Transformation,Human Resources,Human Resources,4709,Occupational Health,25/08/20,Employee Related Expenditure,112170,Transformation,Transformation
630,Inplace Personnel,Neighbourhoods,Waste & Fleet Management,Waste Collection,8403,Agency Staff,13/08/20,Employee Related Expenditure,112253,Neighbourhoods,Neighbourhoods
630,Inplace Personnel,Neighbourhoods,Waste & Fleet Management,Waste Collection,8403,Agency Staff,04/09/20,Employee Related Expenditure,112532,Neighbourhoods,Neighbourhoods
630,Inplace Personnel,Neighbourhoods,Waste & Fleet Management,Waste Collection,8403,Agency Staff,15/09/20,Employee Related Expenditure,112735,Neighbourhoods,Neighbourhoods
620,Thorn Baker Limited,Neighbourhoods,Waste & Fleet Management,Waste Collection,8403,Agency Staff,25/08/20,Employee Related Expenditure,112416,Neighbourhoods,Neighbourhoods
620,Thorn Baker Limited,Neighbourhoods,Waste & Fleet Management,Waste Collection,8403,Agency Staff,08/09/20,Employee Related Expenditure,112684,Neighbourhoods,Neighbourhoods
606.25,British Gas Business,Communities,Community Development,Gresham,8950,Electricity,27/07/20,Premises Related Expenditure,111643,Communities,Communities
600,Medigold Health Consultancy Ltd,Transformation,Human Resources,Human Resources,4709,Occupational Health,24/07/20,Employee Related Expenditure,111242,Transformation,Transformation
597.6,Reach Publishing Services Limited,Communities,Planning & Growth,Development Control,1161,Advertising,04/08/20,Supplies & Services,111732,Communities,Communities
597.6,Reach Publishing Services Limited,Communities,Planning & Growth,Development Control,1161,Advertising,25/08/20,Supplies & Services,112150,Communities,Communities
597.6,Reach Publishing Services Limited,Communities,Planning & Growth,Development Control,1161,Advertising,25/08/20,Supplies & Services,112505,Communities,Communities
595,Replay Maintenance Ltd,Neighbourhoods,Leisure Contracts & Car Parks,Leisure Management Contract,1795,Responsive Works - Buildings,25/08/20,Premises Related Expenditure,112156,Neighbourhoods,Finance & Corporate Services
586.81,Maltby & Company,Transformation,Property Services,Arena Civic Centre,4718,Planned Maintenance Recharge,19/08/20,Supplies & Services,111938,Transformation,Transformation
581,Reach Publishing Services Limited,Communities,Planning & Growth,Development Control,1161,Advertising,21/09/20,Supplies & Services,113306,Communities,Communities
575,Nottingham City Council,Neighbourhoods,Environmental Health,Environmental Health Ha,4743,Training Expenses,16/07/20,Employee Related Expenditure,111235,Neighbourhoods,Neighbourhoods
572.92,Maltby & Company,Neighbourhoods,Strategic Housing,Hostel Hound Lodge,1111,Planned Maintenance Recharge,14/07/20,Supplies & Services,111303,Neighbourhoods,Neighbourhoods
571,Granicus Llc,Finance & Corporate Services,"Performance, Repn & Comms",Performance And Reputation,4710,Legal & Professional Services,24/07/20,Supplies & Services,111291,Finance & Corporate Services,Finance & Corporate Services
571,Granicus Llc,Finance & Corporate Services,"Performance, Repn & Comms",Performance And Reputation,4710,Legal & Professional Services,25/08/20,Supplies & Services,112285,Finance & Corporate Services,Finance & Corporate Services
571,Granicus Llc,Finance & Corporate Services,"Performance, Repn & Comms",Performance And Reputation,4710,Legal & Professional Services,28/09/20,Supplies & Services,112950,Finance & Corporate Services,Finance & Corporate Services
563.15,Streetwise Environmental Ltd           1,Communities,Community Development,Environmental Promotion,1590,Legal & Professional Services,08/07/20,Supplies & Services,111029,Communities,Communities
561.15,Vivid Resourcing (G2v Recruitment Group Ltd),Neighbourhoods,Environmental Health,Pollution Control,1050,Legal & Professional Services,28/09/20,Supplies & Services,113059,Neighbourhoods,Neighbourhoods
560,Nottinghamshire Wildlife Trust,Communities,Planning & Growth,Development Control,1161,Legal & Professional Services,24/07/20,Supplies & Services,111223,Communities,Communities
551.18,James Andrews Recruitment Solutions,Neighbourhoods,Environmental Health,Pollution Control,1050,Legal & Professional Services,17/08/20,Supplies & Services,111951,Neighbourhoods,Neighbourhoods
550,Pitch And Track,Communities,Community Development,Gresham,8950,Service Maintenance Contracts,24/07/20,Premises Related Expenditure,108700,Communities,Communities
548.25,Clearwater Technology Ltd,Transformation,Property Services,Arena Civic Centre,4718,Service Maintenance Contracts,25/08/20,Premises Related Expenditure,112152,Transformation,Transformation
548,Normanton Screenprint,Neighbourhoods,Environmental Health,Envirocrime,1124,Other Equipment/Materials,14/07/20,Supplies & Services,111248,Neighbourhoods,Neighbourhoods
546.8,Smartest Energy,Transformation,Property Services,Hollygate Lane Ph3 (Manvers),1897,Electricity,02/07/20,Premises Related Expenditure,110571,Transformation,Transformation
527.35,Idox Software Limited,Finance & Corporate Services,Ict,It Rechargeable Costs,4722,Maintenance Contracts - S&S,04/09/20,Supplies & Services,112419,Finance & Corporate Services,Transformation
527.17,Civica Uk Ltd,Neighbourhoods,Strategic Housing,Home Alarms,1137,Partnership Workings,15/09/20,Supplies & Services,112764,Neighbourhoods,Neighbourhoods
523.79,Bt Telephone Payment Centre,Finance & Corporate Services,Ict,Telephones,4870,Telephone Rental,16/07/20,Supplies & Services,111170,Finance & Corporate Services,Transformation
517.92,Reach Publishing Services Limited,Communities,Planning & Growth,Conservation,1171,Advertising,08/09/20,Supplies & Services,112809,Communities,Communities
513.75,Buxtons Forestry & Garden Equipment Suppliers,Communities,Community Development,Rushcliffe Country Park,1375,Other Equipment/Materials,24/07/20,Supplies & Services,111312,Communities,Communities
513.54,British Gas Business,Communities,Community Development,Gresham,8950,Electricity,17/09/20,Premises Related Expenditure,112524,Communities,Communities
513.36,Daisy Corporate Services Trading Limited,Finance & Corporate Services,Ict,Telephones,4870,Telephone Rental,25/08/20,Supplies & Services,112261,Finance & Corporate Services,Transformation
507.47,Smartest Energy,Transformation,Property Services,Hollygate Lane Ph3 (Manvers),1897,Electricity,02/07/20,Premises Related Expenditure,110569,Transformation,Transformation
506.24,Haven Power Limited,Transformation,Property Services,Castle Donington,1863,Electricity,25/08/20,Premises Related Expenditure,112259,Transformation,Transformation
505.74,Haven Power Limited,Transformation,Property Services,Castle Donington,1863,Electricity,16/07/20,Premises Related Expenditure,111448,Transformation,Transformation
504.62,Arden Winch & Co Ltd,Neighbourhoods,Waste & Fleet Management,Waste Collection,8403,Other Equipment/Materials,06/08/20,Supplies & Services,111621,Neighbourhoods,Neighbourhoods
504,Inplace Personnel,Neighbourhoods,Waste & Fleet Management,Waste Collection,8403,Agency Staff,21/09/20,Employee Related Expenditure,113085,Neighbourhoods,Neighbourhoods
478.08,Reach Publishing Services Limited,Communities,Planning & Growth,Development Control,1161,Advertising,13/07/20,Supplies & Services,111310,Communities,Communities
470,Access Doors Ltd,Communities,Community Development,West Park,8994,Service Maintenance Contracts,28/09/20,Premises Related Expenditure,113046,Communities,Communities
450,Blade Runners Commercial Ltd,Transformation,Property Services,The Point,1886,Contract Cleaning,29/07/20,Premises Related Expenditure,111518,Transformation,Transformation
433.85,Imtech G&H Ltd,Communities,Community Development,West Park,8994,Planned Maintenance Recharge,06/07/20,Supplies & Services,110177,Communities,Communities
411.65,Imtech G&H Ltd,Communities,Community Development,Sir Julien Cahn Pavilion,8993,Planned Maintenance Recharge,06/07/20,Supplies & Services,110177,Communities,Communities
373.5,Clearwater Technology Ltd,Communities,Community Development,Gresham,8950,Service Maintenance Contracts,25/08/20,Premises Related Expenditure,112152,Communities,Communities
345,Access Doors Ltd,Communities,Community Development,Rushcliffe Country Park,1375,Service Maintenance Contracts,28/09/20,Premises Related Expenditure,113046,Communities,Communities
296.18,Stark Software International,Communities,Community Development,Alford Road,8940,Gas,04/08/20,Premises Related Expenditure,111847,Communities,Communities
296.18,Stark Software International,Communities,Community Development,Gamston Community Hall,8992,Gas,04/08/20,Premises Related Expenditure,111847,Communities,Communities
295.54,Stark Software International,Communities,Community Development,Gresham,8950,Gas,04/08/20,Premises Related Expenditure,111847,Communities,Communities
295.54,Stark Software International,Communities,Community Development,Sir Julien Cahn Pavilion,8993,Gas,04/08/20,Premises Related Expenditure,111847,Communities,Communities
295.54,Stark Software International,Transformation,Property Services,Bridgford Hall,1883,Gas,04/08/20,Premises Related Expenditure,111847,Transformation,Transformation
293.84,Stark Software International,Transformation,Property Services,Arena Civic Centre,4718,Electricity,06/08/20,Premises Related Expenditure,111846,Transformation,Transformation
291.78,Stark Software International,Transformation,Property Services,Unit 10 Moorbridge,4788,Electricity,06/08/20,Premises Related Expenditure,111846,Transformation,Transformation
272.46,Stark Software International,Neighbourhoods,Strategic Housing,Hostel Hound Lodge,1111,Gas,04/08/20,Premises Related Expenditure,111847,Neighbourhoods,Neighbourhoods
270,Access Doors Ltd,Communities,Community Development,Gresham,8950,Service Maintenance Contracts,28/09/20,Premises Related Expenditure,113046,Communities,Communities
258.96,Reach Publishing Services Limited,Communities,Planning & Growth,Conservation,1171,Advertising,15/09/20,Supplies & Services,113039,Communities,Communities
239.75,Clearwater Technology Ltd,Communities,Community Development,Alford Road,8940,Service Maintenance Contracts,25/08/20,Premises Related Expenditure,112152,Communities,Communities
239.75,Clearwater Technology Ltd,Neighbourhoods,Strategic Housing,Hostel Hound Lodge,1111,Service Maintenance Contracts,25/08/20,Premises Related Expenditure,112152,Neighbourhoods,Neighbourhoods
217.25,Clearwater Technology Ltd,Communities,Community Development,West Park,8994,Service Maintenance Contracts,25/08/20,Premises Related Expenditure,112152,Communities,Communities
199.2,Reach Publishing Services Limited,Communities,Planning & Growth,Conservation,1171,Advertising,04/08/20,Supplies & Services,111732,Communities,Communities
178,Imtech G&H Ltd,Communities,Community Development,Gamston Community Hall,8992,Planned Maintenance Recharge,06/07/20,Supplies & Services,110177,Communities,Communities
178,Imtech G&H Ltd,Communities,Community Development,Rushcliffe Country Park,1375,Planned Maintenance Recharge,06/07/20,Supplies & Services,110177,Communities,Communities
178,Imtech G&H Ltd,Transformation,Property Services,Parish Run Pub Conveniences,1072,Planned Maintenance Recharge,06/07/20,Supplies & Services,110177,Transformation,Transformation
172.75,Clearwater Technology Ltd,Communities,Community Development,Lutterell Hall,8990,Service Maintenance Contracts,25/08/20,Premises Related Expenditure,112152,Communities,Communities
170,Dta Electrical,Communities,Community Development,Gresham,8950,Service Maintenance Contracts,06/08/20,Premises Related Expenditure,111949,Communities,Communities
161,Clearwater Technology Ltd,Communities,Community Development,Rushcliffe Country Park,1375,Service Maintenance Contracts,25/08/20,Premises Related Expenditure,112152,Communities,Communities
152.32,Reach Publishing Services Limited,Communities,Planning & Growth,Conservation,1171,Advertising,16/07/20,Supplies & Services,111538,Communities,Communities
150,Dta Electrical,Communities,Community Development,Alford Road,8940,Service Maintenance Contracts,06/08/20,Premises Related Expenditure,111949,Communities,Communities
150,Dta Electrical,Communities,Community Development,West Park,8994,Service Maintenance Contracts,06/08/20,Premises Related Expenditure,111949,Communities,Communities
149.75,Clearwater Technology Ltd,Communities,Community Development,Sir Julien Cahn Pavilion,8993,Service Maintenance Contracts,25/08/20,Premises Related Expenditure,112152,Communities,Communities
145,Access Doors Ltd,Communities,Community Development,Alford Road,8940,Service Maintenance Contracts,28/09/20,Premises Related Expenditure,113046,Communities,Communities
138.5,Clearwater Technology Ltd,Communities,Community Development,Gamston Community Hall,8992,Service Maintenance Contracts,25/08/20,Premises Related Expenditure,112152,Communities,Communities
129.48,Reach Publishing Services Limited,Communities,Planning & Growth,Development Control,1161,Advertising,08/09/20,Supplies & Services,112809,Communities,Communities
125,Blade Runners Commercial Ltd,Transformation,Economic Regeneration,Cotgrave Hub/Msc - Main Bldg,1876,Contract Cleaning,29/07/20,Premises Related Expenditure,111518,Transformation,Transformation
120,Access Doors Ltd,Communities,Community Development,Lutterell Hall,8990,Service Maintenance Contracts,28/09/20,Premises Related Expenditure,113046,Communities,Communities
120,Blade Runners Commercial Ltd,Transformation,Property Services,Bridgford Hall,1883,Contract Cleaning,29/07/20,Premises Related Expenditure,111518,Transformation,Transformation
119.52,Reach Publishing Services Limited,Communities,Planning & Growth,Conservation,1171,Advertising,13/07/20,Supplies & Services,111310,Communities,Communities
116.2,Reach Publishing Services Limited,Communities,Planning & Growth,Conservation,1171,Advertising,21/09/20,Supplies & Services,113306,Communities,Communities
113.82,Reach Publishing Services Limited,Communities,Planning & Growth,Conservation,1171,Advertising,02/09/20,Supplies & Services,112702,Communities,Communities
112.05,Reach Publishing Services Limited,Communities,Planning & Growth,Conservation,1171,Advertising,25/08/20,Supplies & Services,112509,Communities,Communities
95.07,Reach Publishing Services Limited,Communities,Planning & Growth,Conservation,1171,Advertising,25/08/20,Supplies & Services,112275,Communities,Communities
95,Access Doors Ltd,Communities,Community Development,Sir Julien Cahn Pavilion,8993,Service Maintenance Contracts,28/09/20,Premises Related Expenditure,113046,Communities,Communities
90,Access Doors Ltd,Transformation,Property Services,Unit 10 Moorbridge,4788,Service Maintenance Contracts,28/09/20,Premises Related Expenditure,113046,Transformation,Transformation
87.5,Clearwater Technology Ltd,Transformation,Property Services,Castle Donington,1863,Service Maintenance Contracts,25/08/20,Premises Related Expenditure,112152,Transformation,Transformation
85,Dta Electrical,Communities,Community Development,Gamston Community Hall,8992,Service Maintenance Contracts,06/08/20,Premises Related Expenditure,111949,Communities,Communities
85,Dta Electrical,Communities,Community Development,Lutterell Hall,8990,Service Maintenance Contracts,06/08/20,Premises Related Expenditure,111949,Communities,Communities
75,Blade Runners Commercial Ltd,Transformation,Property Services,New Offices - Cotgrave,4798,Contract Cleaning,29/07/20,Premises Related Expenditure,111518,Transformation,Transformation
75,Clearwater Technology Ltd,Transformation,Customer Services,Customer Services,4807,Service Maintenance Contracts,25/08/20,Premises Related Expenditure,112152,Transformation,Transformation
75,Clearwater Technology Ltd,Transformation,Property Services,The Point,1886,Service Maintenance Contracts,25/08/20,Premises Related Expenditure,112152,Transformation,Transformation
75,Clearwater Technology Ltd,Transformation,Property Services,Unit 10 Moorbridge,4788,Service Maintenance Contracts,25/08/20,Premises Related Expenditure,112152,Transformation,Transformation
70,Access Doors Ltd,Communities,Community Development,Gamston Community Hall,8992,Service Maintenance Contracts,28/09/20,Premises Related Expenditure,113046,Communities,Communities
70,Access Doors Ltd,Transformation,Property Services,The Point,1886,Service Maintenance Contracts,28/09/20,Premises Related Expenditure,113046,Transformation,Transformation
45,Blade Runners Commercial Ltd,Communities,Community Development,Gamston Community Hall,8992,Service Maintenance Contracts,29/07/20,Premises Related Expenditure,111518,Communities,Communities
18.13,Daisy Corporate Services Trading Limited,Finance & Corporate Services,Ict,Telephones,4870,Telephone Call Charges,25/08/20,Supplies & Services,112261,Finance & Corporate Services,Transformation
